bitfinex/quotes_BTCUSD_20250127
["timestamp","ask_amount","ask_price","bid_price","bid_amount"]
[1737994247987,0.01,101170.0,101160.0,0.00029694]
[1737994248155,0.70993838,101170.0,101160.0,0.00029694]
[1737994248364,0.75536785,101170.0,101160.0,0.00029694]
[1737994248821,0.58739338,101170.0,101160.0,0.00029694]
[1737994249030,0.81964682,101170.0,101160.0,0.00129694]
[1737994249266,0.81964682,101170.0,101160.0,0.00029694]
[1737994249699,0.73465838,101170.0,101160.0,0.00129694]
[1737994249881,0.74365838,101170.0,101160.0,0.00129694]
[1737994250286,0.84365838,101170.0,101160.0,0.00129694]
[1737994250645,0.40586729,101170.0,101160.0,0.00129694]
[1737994250850,0.28106729,101170.0,101160.0,0.00129694]
[1737994251257,0.27206729,101170.0,101160.0,0.00129694]
[1737994251455,0.26306729,101170.0,101160.0,0.00029694]
[1737994251680,0.44159338,101170.0,101160.0,0.00029694]
[1737994251879,0.53130328,101170.0,101160.0,0.00029694]
[1737994252079,0.44255204,101170.0,101160.0,0.00029694]
[1737994252283,0.45155204,101170.0,101160.0,0.00029694]
[1737994252490,0.11630595,101170.0,101160.0,0.00029694]
[1737994252829,0.11534729,101170.0,101160.0,0.00029694]
[1737994254209,0.009,101170.0,101160.0,0.17157594]
[1737994254406,0.0023632,101190.0,101170.0,0.023]
[1737994254624,0.09734729,101180.0,101170.0,0.023]
[1737994255408,0.09734729,101180.0,101170.0,0.00354941]
[1737994255959,0.26687338,101180.0,101170.0,0.00354941]
[1737994256161,0.41687338,101180.0,101170.0,0.00354941]
[1737994256471,0.41987338,101180.0,101170.0,0.00354941]
[1737994256873,0.25034729,101180.0,101170.0,0.00354941]
[1737994257078,0.24734729,101180.0,101170.0,0.00354941]
[1737994257545,0.25634729,101180.0,101170.0,0.00354941]
[1737994257717,0.25634729,101180.0,101170.0,0.00384635]
[1737994258129,0.26234729,101180.0,101170.0,0.00384635]
[1737994258334,0.11234729,101180.0,101170.0,0.02684635]
[1737994258499,0.11234729,101180.0,101170.0,0.17511135]
[1737994258908,0.015,101180.0,101170.0,0.17511135]
[1737994259096,0.015,101180.0,101170.0,0.62453744]
[1737994259509,0.015,101180.0,101170.0,0.72344624]
[1737994259850,0.015,101180.0,101170.0,0.55392015]
[1737994260252,0.006,101180.0,101170.0,0.40392015]
[1737994260655,0.0001414,101190.0,101170.0,0.72344624]
[1737994260873,0.0001414,101190.0,101180.0,0.17125]
[1737994261077,0.0001414,101190.0,101180.0,0.17468902]
[1737994261900,0.0001414,101190.0,101180.0,0.17548018]
[1737994262117,0.0001414,101190.0,101180.0,0.17468902]
[1737994262471,0.0041414,101190.0,101180.0,0.17468902]
[1737994262672,0.0041414,101190.0,101180.0,0.34500644]
[1737994262898,0.0041414,101190.0,101180.0,0.17468902]
[1737994263131,0.0041414,101190.0,101180.0,0.17548017]
[1737994263333,0.0041414,101190.0,101180.0,0.17468902]
[1737994263639,0.10148869,101190.0,101180.0,0.00343902]
[1737994263834,0.10148869,101190.0,101180.0,0.02643902]
[1737994264466,0.10148869,101190.0,101180.0,0.00343902]
[1737994265083,0.10272418,101190.0,101180.0,0.00343902]
[1737994266335,0.42225027,101190.0,101180.0,0.00343902]
[1737994266479,0.25148869,101190.0,101180.0,0.00343902]
[1737994267025,0.42101478,101190.0,101180.0,0.00343902]
[1737994267239,0.41701478,101190.0,101180.0,0.00343902]
[1737994267441,0.24748869,101190.0,101180.0,0.00343902]
[1737994267649,0.41701478,101190.0,101180.0,0.00343902]
[1737994268055,0.42301478,101190.0,101180.0,0.00343902]
[1737994268670,0.43201478,101190.0,101180.0,0.00343902]
[1737994269760,0.4417129,101190.0,101180.0,0.00343902]
[1737994270222,0.27218681,101190.0,101180.0,0.00343902]
[1737994271279,0.26248869,101190.0,101180.0,0.02643902]
[1737994271531,0.45955321,101190.0,101180.0,0.00343902]
[1737994271775,0.51361478,101190.0,101180.0,0.00343902]
[1737994272022,0.15,101180.0,101170.0,0.00029694]
[1737994272275,0.39192415,101180.0,101170.0,0.00029694]
[1737994272522,0.39068836,101180.0,101170.0,0.00029694]
[1737994273418,0.48543134,101180.0,101170.0,0.00029694]
[1737994273635,0.63368134,101180.0,101170.0,0.00029694]
[1737994273857,0.44558836,101180.0,101170.0,0.00029694]
[1737994274268,0.45558836,101180.0,101170.0,0.00029694]
[1737994274674,0.46558836,101180.0,101170.0,0.00029694]
[1737994274885,0.47558836,101180.0,101170.0,0.00029694]
[1737994275479,0.46658836,101180.0,101170.0,0.00029694]
[1737994275899,0.47458836,101180.0,101170.0,0.00029694]
[1737994276101,0.40868836,101180.0,101170.0,0.00029694]
[1737994276304,0.23916227,101180.0,101170.0,0.00029694]
[1737994276667,0.11534729,101180.0,101170.0,0.00029694]
[1737994276870,0.11658289,101180.0,101170.0,0.00029694]
[1737994277076,0.11534729,101180.0,101170.0,0.00029694]
[1737994277504,0.11658288,101180.0,101170.0,0.00029694]
[1737994277707,0.11534729,101180.0,101170.0,0.17156194]
[1737994277880,0.10634729,101180.0,101170.0,0.02329694]
[1737994278105,0.10634729,101180.0,101170.0,0.17156194]
[1737994278438,0.11534729,101180.0,101170.0,0.02329694]
[1737994278559,0.10634729,101180.0,101170.0,0.02329694]
[1737994279099,0.11534729,101180.0,101170.0,0.02329694]
[1737994279917,0.11658282,101180.0,101170.0,0.02329694]
[1737994280116,0.11548869,101180.0,101170.0,0.02329694]
[1737994280756,0.11672422,101180.0,101170.0,0.02329694]
[1737994281399,0.11548869,101180.0,101170.0,0.02329694]
[1737994281606,0.11548869,101180.0,101170.0,0.17156194]
[1737994282009,0.11548869,101180.0,101170.0,0.02329694]
[1737994282142,0.11548869,101180.0,101170.0,0.1770921]
[1737994282751,0.11548869,101180.0,101170.0,0.0288271]
[1737994283831,0.11548869,101180.0,101170.0,0.1770921]
[1737994284239,0.11548869,101180.0,101170.0,0.0288271]
[1737994284915,0.11548869,101180.0,101170.0,0.1770921]
[1737994285644,0.11548869,101180.0,101170.0,0.0288271]
[1737994286031,0.11548869,101180.0,101170.0,0.1770921]
[1737994286332,0.11548869,101180.0,101170.0,0.0288271]
[1737994286333,0.09748869,101180.0,101170.0,0.0288271]
[1737994286987,0.09748869,101180.0,101170.0,0.0058271]
[1737994287198,0.10472434,101180.0,101170.0,0.0288271]
[1737994287400,0.10648869,101180.0,101170.0,0.0288271]
[1737994287602,0.10048869,101180.0,101170.0,0.02780176]
[1737994288315,0.10172425,101180.0,101170.0,0.02780176]
[1737994288519,0.10048869,101180.0,101170.0,0.02780176]
[1737994289130,0.10048869,101180.0,101170.0,0.17606676]
[1737994289957,0.10048869,101180.0,101170.0,0.02780176]
[1737994291405,0.10048869,101180.0,101170.0,0.17606676]
[1737994291589,0.10048869,101180.0,101170.0,0.02780176]
[1737994292005,0.10048869,101180.0,101170.0,0.0280987]
[1737994292181,0.10048869,101180.0,101170.0,0.1763637]
[1737994292547,0.10048869,101180.0,101170.0,0.2542637]
[1737994292751,0.0031414,101180.0,101170.0,0.36692112]
[1737994293118,0.0031414,101180.0,101170.0,0.2542637]
[1737994293703,0.09748869,101180.0,101170.0,0.2552637]
[1737994293908,0.09748869,101180.0,101170.0,0.0290987]
[1737994294714,0.09748869,101180.0,101170.0,0.0060987]
[1737994295116,0.09748869,101180.0,101170.0,0.0290987]
[1737994295478,0.09748869,101180.0,101170.0,0.01126948]
[1737994295479,0.36014611,101180.0,101170.0,0.01126948]
[1737994295839,0.68904611,101180.0,101170.0,0.01126948]
[1737994296071,0.38322782,101180.0,101170.0,0.01026948]
[1737994296279,0.36014611,101180.0,101170.0,0.01026948]
[1737994296926,0.38014611,101180.0,101170.0,0.01026948]
[1737994297155,0.36314611,101180.0,101170.0,0.01026948]
[1737994297355,0.36914611,101180.0,101170.0,0.01026948]
[1737994297489,0.38914611,101180.0,101170.0,0.01026948]
[1737994297669,0.37814611,101180.0,101170.0,0.01026948]
[1737994297872,0.39818567,101180.0,101170.0,0.01026948]
[1737994298334,0.40824958,101180.0,101170.0,0.01026948]
[1737994299185,0.29559216,101180.0,101170.0,0.01026948]
[1737994299384,0.40824958,101180.0,101170.0,0.01026948]
[1737994300366,0.48135442,101180.0,101170.0,0.01026948]
[1737994300560,0.40824958,101180.0,101170.0,0.01026948]
[1737994300881,0.42824958,101180.0,101170.0,0.01026948]
[1737994301014,0.40824958,101180.0,101170.0,0.01026948]
[1737994301656,0.42824958,101180.0,101170.0,0.01026948]
[1737994302490,0.15,101170.0,101160.0,0.00029694]
[1737994302659,0.43854067,101170.0,101160.0,0.00029694]
[1737994302838,0.36000471,101170.0,101160.0,0.00029694]
[1737994303961,0.36900471,101170.0,101160.0,0.00029694]
[1737994304176,0.37800471,101170.0,101160.0,0.00029694]
[1737994305303,0.46098167,101170.0,101160.0,0.00029694]
[1737994305714,0.82870409,101170.0,101160.0,0.00029694]
[1737994305916,0.85095866,101170.0,101160.0,0.00029694]
[1737994306123,0.15,101150.0,101110.0,0.0456415]
[1737994306361,0.09734729,101130.0,101110.0,0.04613694]
[1737994306562,0.00123624,101120.0,101110.0,0.04613694]
[1737994306762,0.09858353,101120.0,101110.0,0.04613694]
[1737994307187,0.36124095,101120.0,101110.0,0.00063694]
[1737994307426,0.71002881,101120.0,101110.0,0.00063694]
[1737994307936,0.71002881,101120.0,101110.0,0.00918488]
[1737994308137,0.68890471,101120.0,101110.0,0.00063694]
[1737994308448,0.69190471,101120.0,101110.0,0.00918488]
[1737994308582,0.69190471,101120.0,101110.0,0.00063694]
[1737994308995,0.57924729,101120.0,101110.0,0.00063694]
[1737994309196,0.69190471,101120.0,101110.0,0.00063694]
[1737994309396,0.69190471,101120.0,101110.0,0.00918488]
[1737994309648,0.57924729,101120.0,101110.0,0.00918488]
[1737994309848,0.69790471,101120.0,101110.0,0.00918488]
[1737994310023,0.70690471,101120.0,101110.0,0.00918488]
[1737994310611,0.45101484,101120.0,101110.0,0.00918488]
[1737994310846,0.44201484,101120.0,101110.0,0.00918488]
[1737994311474,0.37800471,101120.0,101110.0,0.00918488]
[1737994311669,0.36000471,101120.0,101110.0,0.00918488]
[1737994311926,0.38000471,101120.0,101110.0,0.00918488]
[1737994312102,0.40924891,101120.0,101110.0,0.00918488]
[1737994312664,0.40024891,101120.0,101110.0,0.00918488]
[1737994312871,0.80559162,101120.0,101110.0,0.00918488]
[1737994312995,0.65725362,101120.0,101110.0,0.00918488]
[1737994313205,0.65725362,101120.0,101110.0,0.00063694]
[1737994313758,0.5445962,101120.0,101110.0,0.00063694]
[1737994313984,0.5355962,101120.0,101110.0,0.00063694]
[1737994314570,0.5445962,101120.0,101110.0,0.00063694]
[1737994314754,0.80559162,101120.0,101110.0,0.00063694]
[1737994315033,0.5691962,101120.0,101110.0,0.00063694]
[1737994315471,0.5501962,101120.0,101110.0,0.00063694]
[1737994315775,0.5601962,101120.0,101110.0,0.00063694]
[1737994316180,0.7085342,101120.0,101110.0,0.00063694]
[1737994316388,0.5591962,101120.0,101110.0,0.00063694]
[1737994317100,0.68185362,101120.0,101110.0,0.00063694]
[1737994317334,0.5691962,101120.0,101110.0,0.00063694]
[1737994318831,0.41384891,101120.0,101110.0,0.00063694]
[1737994319233,0.43384891,101120.0,101110.0,0.00945507]
[1737994319431,0.43384891,101120.0,101110.0,0.00953934]
[1737994320907,0.39824891,101120.0,101110.0,0.00953934]
[1737994321113,0.13559149,101120.0,101110.0,0.00953934]
[1737994321308,0.11534729,101120.0,101110.0,0.03253934]
[1737994321516,0.22580644,101120.0,101110.0,0.03253934]
[1737994321850,0.22580644,101120.0,101110.0,0.00953934]
[1737994322007,0.20780644,101120.0,101110.0,0.00953934]
[1737994322551,0.11314902,101120.0,101110.0,0.03253934]
[1737994322933,0.10414902,101120.0,101110.0,0.03253934]
[1737994323134,0.10414902,101120.0,101110.0,0.00953934]
[1737994323135,0.27335999,101120.0,101110.0,0.00953934]
[1737994323335,0.28235999,101120.0,101110.0,0.00953934]
[1737994323739,0.27335999,101120.0,101110.0,0.00953934]
[1737994323938,0.28235999,101120.0,101110.0,0.00953934]
[1737994324597,0.42079534,101120.0,101110.0,0.00953934]
[1737994324954,0.42979534,101120.0,101110.0,0.00953934]
[1737994325390,0.74969534,101120.0,101110.0,0.00953934]
[1737994325808,0.75869534,101120.0,101110.0,0.00953934]
[1737994326249,0.74809227,101120.0,101110.0,0.00953934]
[1737994326610,0.75723367,101120.0,101110.0,0.00953934]
[1737994326809,0.74823367,101120.0,101110.0,0.00953934]
[1737994327222,0.75723367,101120.0,101110.0,0.00953934]
[1737994328069,0.74823367,101120.0,101110.0,0.00953934]
[1737994328444,0.75723367,101120.0,101110.0,0.00953934]
[1737994330751,0.42833367,101120.0,101110.0,0.00953934]
[1737994331795,0.47712064,101120.0,101110.0,0.00953934]
[1737994332154,0.02,101100.0,101070.0,0.00029694]
[1737994332398,0.58576923,101080.0,101070.0,0.00029694]
[1737994332516,0.41655826,101080.0,101070.0,0.00029694]
[1737994332718,0.66231506,101080.0,101070.0,0.00029694]
[1737994332934,0.0655,101070.0,101060.0,0.00029694]
[1737994333148,0.34533923,101070.0,101050.0,0.00029694]
[1737994333353,0.27279563,101060.0,101050.0,0.00029694]
[1737994333573,1.19421283,101060.0,101050.0,1e-08]
[1737994333909,1.45892238,101060.0,101050.0,0.00014855]
[1737994334108,1.54604238,101060.0,101050.0,0.00014855]
[1737994334319,1.37683141,101060.0,101050.0,0.00014855]
[1737994334526,1.94220591,101060.0,101050.0,0.00014855]
[1737994334726,0.16921097,101030.0,101020.0,0.01613149]
[1737994334927,0.26779577,101030.0,101020.0,0.01618101]
[1737994335078,0.26655826,101030.0,101020.0,0.01618101]
[1737994335278,0.74545826,101030.0,101020.0,0.01618101]
[1737994335771,0.74545826,101030.0,101020.0,0.03918101]
[1737994337176,0.57624729,101030.0,101020.0,0.03918101]
[1737994337884,0.58593854,101030.0,101020.0,0.03918101]
[1737994338085,0.59493854,101030.0,101020.0,0.03918101]
[1737994338769,0.43524729,101030.0,101020.0,0.03918101]
[1737994338979,0.10634729,101030.0,101020.0,0.03918101]
[1737994339157,0.11234729,101030.0,101020.0,0.03918101]
[1737994339712,0.11234729,101030.0,101020.0,0.04546615]
[1737994340067,0.11234729,101030.0,101020.0,0.19895115]
[1737994340287,0.11234729,101030.0,101020.0,0.27565115]
[1737994340915,0.11234729,101030.0,101020.0,0.12716615]
[1737994341182,0.11234729,101030.0,101020.0,0.27565115]
[1737994341933,0.11234729,101030.0,101020.0,0.12216615]
[1737994342130,0.11358468,101030.0,101020.0,0.12216615]
[1737994342978,0.11234729,101030.0,101020.0,0.12716615]
[1737994344177,0.11234729,101030.0,101020.0,0.27565115]
[1737994344987,0.11234729,101030.0,101020.0,0.32205115]
[1737994345407,0.015,101030.0,101020.0,0.64126212]
[1737994345601,0.0009841,101050.0,101040.0,0.281256]
[1737994345773,0.0009841,101050.0,101040.0,0.304256]
[1737994345979,0.3626266,101060.0,101050.0,0.176441]
[1737994346189,0.0337266,101060.0,101050.0,0.17723554]
[1737994346406,0.13107389,101060.0,101050.0,0.17223554]
[1737994346582,0.13107389,101060.0,101050.0,0.18289932]
[1737994346796,0.13107389,101060.0,101050.0,0.18369383]
[1737994348398,0.13107389,101060.0,101050.0,0.18669383]
[1737994349038,0.13107389,101060.0,101050.0,0.03745832]
[1737994349452,0.13107389,101060.0,101050.0,0.03245832]
[1737994349655,0.13107389,101060.0,101050.0,0.18589932]
[1737994350267,0.13121539,101060.0,101050.0,0.18589932]
[1737994350464,0.13121539,101060.0,101050.0,0.03745832]
[1737994350623,0.13121539,101060.0,101050.0,0.03045832]
[1737994350823,0.13121539,101060.0,101050.0,0.03445832]
[1737994351028,0.13121539,101060.0,101050.0,0.03645832]
[1737994351245,0.13321539,101060.0,101050.0,0.18489932]
[1737994351472,0.0358681,101060.0,101050.0,0.35290486]
[1737994351676,0.0021415,101060.0,101050.0,0.58191029]
[1737994351888,0.0009823,101090.0,101080.0,0.176397]
[1737994352094,0.09734729,101090.0,101080.0,0.22529075]
[1737994352304,0.09734729,101090.0,101080.0,0.23067037]
[1737994353115,0.09784181,101090.0,101080.0,0.23067037]
[1737994353326,0.00049452,101090.0,101080.0,0.30937037]
[1737994353732,0.00049452,101090.0,101080.0,0.30437037]
[1737994353947,0.09784181,101090.0,101080.0,0.30937037]
[1737994354700,0.09784181,101090.0,101080.0,0.31037037]
[1737994354701,0.10284181,101090.0,101080.0,0.31037037]
[1737994354913,0.11184181,101090.0,101080.0,0.31137037]
[1737994356247,0.01449452,101090.0,101080.0,0.31137037]
[1737994357033,0.11184181,101090.0,101080.0,0.31137037]
[1737994359647,0.11184181,101090.0,101080.0,0.00817337]
[1737994359853,0.43105278,101090.0,101080.0,0.00817337]
[1737994361072,0.26184181,101090.0,101080.0,0.00817337]
[1737994361283,0.26184181,101090.0,101080.0,0.00617337]
[1737994361284,0.41705278,101090.0,101080.0,0.00617337]
[1737994361489,0.42605278,101090.0,101080.0,0.00717337]
[1737994361701,0.43205278,101090.0,101080.0,0.002]
[1737994361929,0.42305278,101090.0,101080.0,0.001]
[1737994362137,0.15,101080.0,101040.0,0.394768]
[1737994362365,0.09858423,101070.0,101050.0,0.005]
[1737994362602,0.09858423,101070.0,101050.0,0.176437]
[1737994362845,0.09858423,101070.0,101050.0,0.351358]
[1737994363112,0.01820969,101060.0,101050.0,0.17673436]
[1737994363356,0.11555698,101060.0,101050.0,0.17752881]
[1737994363798,0.11555698,101060.0,101050.0,0.02329736]
[1737994364202,0.09734729,101060.0,101050.0,0.02329736]
[1737994364417,0.09734729,101060.0,101050.0,0.17673836]
[1737994365969,0.3298834,101080.0,101070.0,0.153411]
[1737994366170,0.09833069,101080.0,101070.0,0.34641614]
[1737994366436,0.00063612,101090.0,101080.0,0.251397]
[1737994366758,0.09798341,101090.0,101080.0,0.171397]
[1737994366967,0.2684309,101090.0,101080.0,0.023]
[1737994367171,0.26719438,101090.0,101050.0,0.58963936]
[1737994367307,0.26719438,101090.0,101060.0,0.005]
[1737994367308,0.1075841,101080.0,101060.0,0.005]
[1737994367510,0.1075841,101080.0,101070.0,0.023]
[1737994367758,0.41779507,101080.0,101060.0,0.023]
[1737994367958,0.2485841,101080.0,101060.0,0.028]
[1737994368187,0.2485841,101080.0,101060.0,0.176423]
[1737994368496,0.2485841,101080.0,101060.0,0.028]
[1737994368619,0.2485841,101080.0,101060.0,0.176425]
[1737994368820,0.2485841,101080.0,101060.0,0.028]
[1737994369018,0.2575841,101080.0,101060.0,0.176426]
[1737994369307,0.2485841,101080.0,101060.0,0.028]
[1737994369438,0.2485841,101080.0,101060.0,0.176426]
[1737994369636,0.2575841,101080.0,101060.0,0.176426]
[1737994369837,0.2635841,101080.0,101060.0,0.177426]
[1737994370079,0.2635841,101080.0,101060.0,0.37612138]
[1737994370080,0.26234729,101080.0,101060.0,0.37612138]
[1737994370342,0.26234729,101080.0,101060.0,0.1712006]
[1737994370596,0.26234729,101080.0,101060.0,0.3741026]
[1737994371287,0.26234729,101080.0,101060.0,0.0227746]
[1737994371533,0.00123681,101070.0,101060.0,0.0227746]
[1737994371731,0.0985841,101070.0,101060.0,0.0227746]
[1737994371948,0.0985841,101070.0,101060.0,0.001]
[1737994372179,0.2485841,101070.0,101060.0,0.00708597]
[1737994372381,0.41655826,101070.0,101060.0,0.00708597]
[1737994372596,0.24734729,101070.0,101060.0,0.00708597]
[1737994372802,0.42555826,101070.0,101060.0,0.00708597]
[1737994373050,0.42555826,101070.0,101060.0,0.00608597]
[1737994373269,0.43055826,101070.0,101060.0,0.00608597]
[1737994373701,0.58160409,101070.0,101060.0,0.00608597]
[1737994374474,0.50565826,101070.0,101060.0,0.00608597]
[1737994374878,0.50579986,101070.0,101060.0,0.00608597]
[1737994375072,0.49179986,101070.0,101060.0,0.00608597]
[1737994375496,0.50079986,101070.0,101060.0,0.00608597]
[1737994375701,0.49179986,101070.0,101060.0,0.00608597]
[1737994375923,0.09748889,101070.0,101060.0,0.00608597]
[1737994376061,0.10772589,101070.0,101060.0,0.00608597]
[1737994376267,0.10772589,101070.0,101060.0,0.02908597]
[1737994376268,0.10648889,101070.0,101060.0,0.02908597]
[1737994376533,0.11548889,101070.0,101060.0,0.17751197]
[1737994376753,0.11548889,101070.0,101060.0,0.02908597]
[1737994377100,0.27569986,101070.0,101060.0,0.02908597]
[1737994377236,0.28469986,101070.0,101060.0,0.02908597]
[1737994377413,0.11548889,101070.0,101060.0,0.02908597]
[1737994377623,0.11672583,101070.0,101060.0,0.02908597]
[1737994378611,0.28593678,101070.0,101060.0,0.00608597]
[1737994378782,0.43469986,101070.0,101060.0,0.00608597]
[1737994383035,0.26548889,101070.0,101060.0,0.02908597]
[1737994383236,0.43469986,101070.0,101060.0,0.02908597]
[1737994383951,0.26548889,101070.0,101060.0,0.02908597]
[1737994384957,0.26548889,101070.0,101060.0,0.17751197]
[1737994384958,0.11548889,101070.0,101060.0,0.17751197]
[1737994385377,0.11548889,101070.0,101060.0,0.18330629]
[1737994385547,0.0181416,101070.0,101060.0,0.26500615]
[1737994385749,0.0181416,101070.0,101060.0,0.26421197]
[1737994386318,0.0091416,101070.0,101060.0,0.26421197]
[1737994386734,0.0181416,101070.0,101060.0,0.26450933]
[1737994387139,0.0091416,101070.0,101060.0,0.26450933]
[1737994387346,0.0001416,101070.0,101060.0,0.26450933]
[1737994387546,0.0181416,101070.0,101060.0,0.26450933]
[1737994387721,0.28469986,101070.0,101060.0,0.00638333]
[1737994387953,0.11548889,101070.0,101060.0,0.00638333]
[1737994388161,0.10648889,101070.0,101060.0,0.25980933]
[1737994388365,0.11048889,101070.0,101060.0,0.25980933]
[1737994388571,0.11048889,101070.0,101060.0,0.10638333]
[1737994388774,0.11048889,101070.0,101060.0,0.26060359]
[1737994388946,0.11048889,101070.0,101060.0,0.25980933]
[1737994389367,0.0131416,101070.0,101060.0,0.4787203]
[1737994389574,0.0131416,101070.0,101060.0,0.30950933]
[1737994389722,0.0131416,101070.0,101060.0,0.4787203]
[1737994390128,0.0131416,101070.0,101060.0,0.6267203]
[1737994390331,0.0131416,101070.0,101060.0,0.62847657]
[1737994390533,0.0131416,101070.0,101060.0,0.4592656]
[1737994390733,0.0091416,101070.0,101060.0,0.4592656]
[1737994391095,0.0091416,101070.0,101060.0,0.4602656]
[1737994391279,0.0001416,101070.0,101060.0,0.4602656]
[1737994391892,0.09748889,101070.0,101060.0,0.4372656]
[1737994392034,0.0001416,101070.0,101060.0,0.4372656]
[1737994392236,0.0001416,101070.0,101060.0,0.4602656]
[1737994392634,0.0011416,101070.0,101060.0,0.4602656]
[1737994393503,0.0011416,101070.0,101060.0,0.3102656]
[1737994393716,0.09848889,101070.0,101060.0,0.2872656]
[1737994394076,0.09848889,101070.0,101060.0,0.3102656]
[1737994394280,0.09848889,101070.0,101060.0,0.2605656]
[1737994394704,0.09848889,101070.0,101060.0,0.2595656]
[1737994394879,0.09824872,101070.0,101060.0,0.2595656]
[1737994395065,0.10124872,101070.0,101060.0,0.2595656]
[1737994395667,0.10124872,101070.0,101060.0,0.0341396]
[1737994395870,0.10124872,101070.0,101060.0,0.0061396]
[1737994396124,0.10158409,101070.0,101060.0,0.0061396]
[1737994396447,0.42979506,101070.0,101060.0,0.0341396]
[1737994396624,0.42855826,101070.0,101060.0,0.0061396]
[1737994396826,0.41655826,101070.0,101060.0,0.0061396]
[1737994397029,0.42555826,101070.0,101060.0,0.0291396]
[1737994397187,0.10634729,101070.0,101060.0,0.0301396]
[1737994397392,0.10634729,101070.0,101060.0,0.0351396]
[1737994397615,0.10634729,101070.0,101060.0,0.0291396]
[1737994397900,0.10648889,101070.0,101060.0,0.0341396]
[1737994398135,0.11048889,101070.0,101060.0,0.0341396]
[1737994398578,0.11048889,101070.0,101060.0,0.1825656]
[1737994398884,0.11048889,101070.0,101060.0,0.0341396]
[1737994399110,0.43093671,101070.0,101060.0,0.0061396]
[1737994399301,0.42969986,101070.0,101060.0,0.0061396]
[1737994401942,0.44976961,101070.0,101060.0,0.0061396]
[1737994402153,0.44576961,101070.0,101060.0,0.0061396]
[1737994403051,0.45476961,101070.0,101060.0,0.00626738]
[1737994403469,0.78366961,101070.0,101060.0,0.00626738]
[1737994403679,0.15,101060.0,101050.0,0.00029736]
[1737994403889,0.4662955,101060.0,101050.0,0.00029736]
[1737994404091,0.46505826,101060.0,101050.0,0.00029736]
[1737994404866,0.41655826,101060.0,101050.0,0.00029736]
[1737994405066,0.25634729,101060.0,101050.0,0.00029736]
[1737994405256,0.42555826,101060.0,101050.0,0.00029736]
[1737994405849,0.43455826,101060.0,101050.0,0.00029736]
[1737994406262,0.42555826,101060.0,101050.0,0.00029736]
[1737994406487,0.43455826,101060.0,101050.0,0.00029736]
[1737994406716,0.42555826,101060.0,101050.0,0.00029736]
[1737994407155,0.43455826,101060.0,101050.0,0.00029736]
[1737994407323,0.25634729,101060.0,101050.0,0.00029736]
[1737994407524,0.25634729,101060.0,101050.0,0.02829736]
[1737994407525,0.10634729,101060.0,101050.0,0.02829736]
[1737994407667,0.10634729,101060.0,101050.0,0.17673836]
[1737994407869,0.10634729,101060.0,101050.0,0.17753305]
[1737994407870,0.09734729,101060.0,101050.0,0.17753305]
[1737994408306,0.10634729,101060.0,101050.0,0.22073305]
[1737994408511,0.10634729,101060.0,101050.0,0.21993836]
[1737994408705,0.11534729,101060.0,101050.0,0.22493836]
[1737994409091,0.11534729,101060.0,101050.0,0.21993836]
[1737994409300,0.11534729,101060.0,101050.0,0.22493836]
[1737994409512,0.018,101060.0,101050.0,0.30533836]
[1737994410572,0.009,101060.0,101050.0,0.30533836]
[1737994410971,0.10634729,101060.0,101050.0,0.30533836]
[1737994411170,0.09734729,101060.0,101050.0,0.31024312]
[1737994411543,0.09734729,101060.0,101050.0,0.31124312]
[1737994411949,0.09734729,101060.0,101050.0,0.31224312]
[1737994412617,0.09734729,101060.0,101050.0,0.28924312]
[1737994412818,0.09734729,101060.0,101050.0,0.31224312]
[1737994413678,0.0001416,101070.0,101060.0,0.028]
[1737994413884,0.09748889,101070.0,101060.0,0.1772202]
[1737994414120,0.09748889,101070.0,101060.0,0.18212266]
[1737994415027,0.09748889,101070.0,101060.0,0.18312266]
[1737994415435,0.09848889,101070.0,101060.0,0.18312266]
[1737994417746,0.0011416,101070.0,101060.0,0.50233363]
[1737994418085,0.0011416,101070.0,101060.0,0.68065743]
[1737994418450,0.0011416,101070.0,101060.0,0.51144646]
[1737994418895,0.0011416,101070.0,101060.0,0.41142846]
[1737994419068,0.0001416,101070.0,101060.0,0.41142846]
[1737994419276,0.0001416,101070.0,101060.0,0.41242846]
[1737994419451,0.31755103,101110.0,101090.0,0.005]
[1737994419651,0.09501226,101100.0,101090.0,0.153382]
[1737994420065,0.09501226,101100.0,101090.0,0.005]
[1737994420269,0.09624876,101100.0,101090.0,0.005]
[1737994420469,0.09624876,101100.0,101080.0,0.346238]
[1737994420689,0.26545973,101100.0,101080.0,0.005]
[1737994421098,0.26545973,101100.0,101080.0,0.153396]
[1737994421460,0.26530747,101100.0,101080.0,0.005]
[1737994421664,0.27430747,101100.0,101080.0,0.005]
[1737994421896,0.09734729,101090.0,101070.0,0.4008836]
[1737994422100,0.09734729,101090.0,101080.0,0.153397]
[1737994422101,0.09858389,101090.0,101080.0,0.153397]
[1737994422300,0.09734729,101090.0,101080.0,0.17719086]
[1737994422504,0.26655826,101090.0,101070.0,0.00063612]
[1737994422707,0.0985841,101080.0,101070.0,0.00063612]
[1737994422920,0.09734729,101080.0,101070.0,0.00063612]
[1737994424014,0.0985841,101080.0,101070.0,0.00063612]
[1737994424173,0.2485841,101080.0,101070.0,0.00063612]
[1737994424376,0.24734729,101080.0,101070.0,0.00063612]
[1737994425836,0.43455826,101080.0,101070.0,0.00063612]
[1737994426016,0.25634729,101080.0,101070.0,0.00063612]
[1737994426417,0.26534729,101080.0,101070.0,0.00063612]
[1737994426818,0.43455826,101080.0,101070.0,0.00063612]
[1737994428012,0.45455826,101080.0,101070.0,0.00063612]
[1737994428216,0.47461412,101080.0,101070.0,0.00063612]
[1737994428417,0.29561412,101080.0,101070.0,0.00078265]
[1737994428616,0.11740315,101080.0,101070.0,0.00078265]
[1737994428931,0.12763994,101080.0,101070.0,0.00078265]
[1737994429133,0.44685091,101080.0,101070.0,0.00078265]
[1737994429333,0.46446973,101080.0,101070.0,0.00078265]
[1737994429896,0.44646973,101080.0,101070.0,0.00078265]
[1737994430095,0.45546973,101080.0,101070.0,0.00078265]
[1737994430385,0.78738767,101080.0,101050.0,0.00029736]
[1737994430662,0.41655826,101060.0,101050.0,0.00034688]
[1737994431108,0.36033158,101060.0,101050.0,0.00034688]
[1737994432204,0.24734729,101060.0,101050.0,0.00534688]
[1737994432412,0.09734729,101060.0,101050.0,0.02834688]
[1737994432612,0.09734729,101060.0,101050.0,0.17678788]
[1737994433028,0.11534729,101060.0,101050.0,0.28977217]
[1737994433266,0.11534729,101060.0,101050.0,0.36977217]
[1737994433267,0.009,101060.0,101050.0,0.36977217]
[1737994433470,0.009,101060.0,101050.0,0.25678788]
[1737994433642,0.1348191,101090.0,101070.0,0.005]
[1737994433876,0.1348191,101090.0,101070.0,0.028]
[1737994433877,0.09734729,101080.0,101070.0,0.028]
[1737994434078,0.09734729,101080.0,101070.0,0.02829715]
[1737994434466,0.09734729,101080.0,101070.0,0.17670815]
[1737994434795,0.09734729,101080.0,101070.0,0.17750233]
[1737994435209,0.09734729,101080.0,101070.0,0.17670815]
[1737994435407,0.09734729,101080.0,101070.0,0.02829715]
[1737994435611,0.09734729,101080.0,101070.0,0.17670815]